bitfinex/quotes_ETHUSD_20241203
["timestamp","ask_amount","ask_price","bid_price","bid_amount"]
[1733205071366,0.66391737,3661.8,3661.2,0.77385045]
[1733205071679,1.20117399,3661.7,3661.2,0.10709962]
[1733205071840,0.25535379,3661.6,3661.2,0.10709962]
[1733205072041,0.25535379,3661.5,3661.2,0.10709962]
[1733205072276,0.25535379,3661.4,3661.2,0.10709962]
[1733205072452,0.25535379,3661.3,3661.2,0.10709962]
[1733205072643,0.25535379,3661.7,3661.2,0.10709962]
[1733205072876,0.7899,3661.5,3661.2,0.10709962]
[1733205073190,2.73119,3661.4,3660.7,0.7735]
[1733205073389,5.02447459,3661.4,3660.4,0.7735]
[1733205073594,2.62035055,3661.3,3660.4,0.7735]
[1733205073739,1.35448873,3661.2,3660.4,0.7735]
[1733205073942,0.40854154,3661.2,3660.4,0.7735]
[1733205074142,0.25533846,3661.1,3660.4,0.7735]
[1733205074338,0.25533846,3661.0,3660.4,0.7735]
[1733205074689,0.25533846,3660.9,3660.4,0.7735]
[1733205074985,0.25533846,3660.8,3660.1,0.8163]
[1733205075200,0.25533846,3660.7,3660.1,0.8163]
[1733205075354,2.98713846,3660.6,3659.7,0.8163]
[1733205075551,0.25533846,3660.5,3659.9,2.73231]
[1733205075898,0.25533846,3660.4,3659.7,3.54874]
[1733205076199,0.25522305,3660.7,3659.9,2.73227]
[1733205076487,0.25522569,3660.6,3659.9,3.14451738]
[1733205076687,0.25522569,3660.5,3659.9,3.14451738]
[1733205076892,1.20594154,3660.9,3660.0,2.73222]
[1733205076893,0.25522569,3660.8,3660.0,2.73222]
[1733205077093,0.25521793,3660.7,3660.1,0.02731849]
[1733205077397,0.25521793,3660.6,3659.9,3.38492889]
[1733205077601,0.25521793,3660.5,3659.9,3.38492889]
[1733205077895,0.25519017,3660.4,3659.9,0.38492889]
[1733205078190,0.25519017,3660.3,3659.9,0.38492889]
[1733205078356,0.25519017,3660.7,3659.9,0.38492889]
[1733205078556,0.25519017,3660.6,3659.7,6.54875]
[1733205078814,0.25519017,3660.5,3659.7,6.54875]
[1733205079092,0.25519017,3660.4,3659.8,0.02731853]
[1733205079293,1.20594154,3660.9,3660.0,3.0]
[1733205079294,0.25519017,3660.8,3660.0,3.0]
[1733205079596,0.25519017,3660.7,3660.1,0.152083]
[1733205079800,0.25519017,3660.6,3660.1,0.12476451]
[1733205080003,0.25512604,3660.5,3660.1,0.12476451]
[1733205080219,0.25512604,3660.4,3660.1,0.12476451]
[1733205080381,0.25512604,3660.4,3659.8,3.02731849]
[1733205080585,0.25512604,3660.3,3659.8,3.71277325]
[1733205080805,0.25512604,3660.7,3659.8,3.74009204]
[1733205081003,0.25512604,3660.6,3659.8,3.74009204]
[1733205081190,0.25512604,3660.5,3659.8,3.74009204]
[1733205081491,0.25509741,3660.7,3659.9,3.0]
[1733205081701,0.25509741,3660.6,3660.0,0.0273185]
[1733205081879,0.25509741,3660.5,3660.0,0.0273185]
[1733205082096,0.25509741,3660.4,3660.0,0.0273185]
[1733205082308,0.25509741,3660.8,3660.0,0.0273185]
[1733205082625,0.25509741,3660.7,3660.0,0.0273185]
[1733205082796,0.25509741,3660.6,3660.0,2.7595485]
[1733205082998,0.25509741,3660.8,3660.0,0.0273185]
[1733205083328,0.25509741,3660.7,3659.9,3.0]
[1733205083625,0.25516568,3660.6,3659.9,3.72614333]
[1733205083835,0.25516568,3660.5,3659.9,3.0]
[1733205084133,0.25516568,3660.4,3659.9,3.0]
[1733205084433,0.25519928,3660.8,3660.0,3.0]
[1733205084584,0.25519928,3660.7,3660.0,3.0]
[1733205084787,0.25519928,3660.6,3660.0,3.0]
[1733205084983,0.25519928,3660.5,3660.0,3.0]
[1733205085211,0.25519928,3660.4,3660.0,3.0]
[1733205085389,0.25522822,3660.8,3660.0,3.02731863]
[1733205085587,0.25522822,3660.7,3660.0,3.02731863]
[1733205085788,0.25522822,3660.6,3660.0,3.0]
[1733205085989,0.25522822,3660.5,3660.0,3.0]
[1733205086228,0.25522822,3660.4,3660.0,3.0]
[1733205086390,1.20566509,3660.9,3660.0,3.0]
[1733205086391,0.40826509,3660.8,3660.0,3.0]
[1733205086595,0.25527865,3660.7,3660.0,3.0]
[1733205086813,0.25527865,3660.6,3660.0,3.0]
[1733205086993,0.25527865,3660.5,3660.0,3.0]
[1733205087327,0.25533421,3660.4,3660.0,3.0]
[1733205087529,0.40853474,3660.8,3660.0,3.0]
[1733205087734,0.40853474,3660.8,3660.1,0.12502004]
[1733205087735,0.25533275,3660.7,3660.1,0.12502004]
[1733205087907,0.25533275,3660.6,3660.1,0.15233864]
[1733205088233,0.25533275,3660.5,3660.1,0.15233864]
[1733205088428,0.25533275,3660.4,3660.1,0.15233864]
[1733205088731,0.40853474,3660.8,3660.1,0.15233864]
[1733205088933,0.66393857,3660.7,3660.1,0.12502004]
[1733205089098,0.66393857,3660.6,3660.1,0.12502004]
[1733205089298,0.25540383,3660.5,3659.9,3.0]
[1733205089501,0.25540383,3660.4,3660.0,0.12506262]
[1733205089697,0.25540383,3660.3,3660.0,0.12506262]
[1733205089918,0.25540383,3660.2,3660.0,0.12506262]
[1733205090161,0.40853474,3660.7,3660.0,0.12506262]
[1733205090337,0.66403698,3660.6,3660.0,0.12506262]
[1733205090633,0.25550224,3660.5,3660.0,0.12506262]
[1733205090839,0.25550872,3660.4,3660.0,0.12506262]
[1733205090992,0.25550872,3660.3,3660.0,2.88461124]
[1733205091193,0.40881395,3660.8,3660.0,3.12963974]
[1733205091392,0.7974,3660.9,3660.0,3.12963974]
[1733205091393,0.6642925,3660.7,3660.1,0.12504134]
[1733205091626,0.25547855,3660.6,3660.1,0.12504134]
[1733205091838,0.25547855,3660.5,3660.1,0.12504134]
[1733205092128,0.25547855,3660.4,3660.1,0.12504134]
[1733205092335,0.25547855,3660.3,3659.9,3.0]
[1733205092534,0.40881395,3660.7,3660.2,0.12508821]
[1733205092830,0.25548083,3660.6,3659.9,3.0]
[1733205093035,0.25548083,3660.5,3660.3,0.12504564]
[1733205093209,0.25548083,3660.4,3659.9,3.0]
[1733205093394,0.25548083,3660.3,3659.9,3.0]
[1733205093593,0.40881395,3660.8,3659.9,5.73229]
[1733205093789,0.66428978,3660.7,3660.0,0.02731863]
[1733205094027,0.25547583,3660.6,3660.1,2.73216]
[1733205094340,0.7974,3660.9,3660.0,0.02731863]
[1733205094341,0.7974,3660.9,3660.0,2.75948863]
[1733205094505,1.35407761,3660.9,3660.0,2.75948863]
[1733205094700,0.66421699,3660.8,3660.0,2.75948863]
[1733205095021,0.66421699,3660.7,3660.0,2.75948863]
[1733205095207,1.35407761,3660.9,3660.0,2.75948863]
[1733205095208,0.66421699,3660.6,3660.0,2.73217]
[1733205095408,0.25546807,3660.5,3660.0,2.73217]
[1733205095610,0.25546807,3660.4,3660.0,2.75948865]
[1733205095924,0.25546807,3660.3,3660.0,2.75948865]
[1733205096096,0.40874892,3660.8,3660.0,2.75948865]
[1733205096297,0.66427385,3660.7,3660.0,2.75948865]
[1733205096498,0.66427385,3660.6,3660.0,2.75948865]
[1733205096811,0.25552493,3660.5,3660.1,2.75945865]
[1733205097008,0.25552149,3660.4,3660.1,2.75945865]
[1733205097229,0.40883438,3660.7,3660.1,2.75945865]
[1733205097531,0.7974,3660.9,3660.1,2.75945865]
[1733205097532,0.66441682,3660.6,3660.1,2.75945865]
[1733205097706,0.25558244,3660.5,3660.1,2.75945865]
[1733205097913,0.25558244,3660.4,3660.1,0.02731865]
[1733205098233,0.25558244,3660.3,3660.0,3.0]
[1733205098405,0.25558244,3660.3,3660.1,0.02731888]
[1733205098606,0.40883438,3660.5,3660.1,0.02731888]
[1733205098821,0.25564528,3660.4,3660.0,2.75953865]
[1733205099039,0.25564528,3660.3,3660.0,3.41712252]
[1733205099238,0.25564528,3660.2,3660.0,3.41712252]
[1733205099541,0.40883438,3660.5,3660.0,3.41712252]
[1733205099691,0.25571397,3660.4,3660.0,2.75953865]
[1733205099892,0.25571397,3660.3,3660.1,0.02731871]
[1733205100240,0.25571397,3660.2,3660.1,0.02731871]
[1733205100628,0.25571397,3660.2,3660.0,2.73222]
[1733205100797,0.25571397,3660.1,3660.0,2.73222]
[1733205101136,0.25571397,3660.1,3660.0,5.73222]
[1733205101696,0.25589446,3660.1,3660.0,5.73222]
[1733205101892,0.25589446,3660.1,3660.0,6.19812788]
[1733205102311,0.25589446,3660.1,3659.8,2.73236]
[1733205102510,0.25589446,3660.0,3659.9,3.0]
[1733205102696,0.25589446,3660.0,3659.9,0.12515206]
[1733205102697,1.19467703,3660.0,3659.9,0.12515206]
[1733205102902,1.60432899,3660.0,3658.9,0.8273]
[1733205103145,2.73214,3660.2,3658.9,0.8273]
[1733205103146,0.93878257,3659.6,3658.9,0.8273]
[1733205103303,0.25589446,3659.5,3658.9,0.8273]
[1733205103502,0.25589446,3659.4,3658.9,0.8273]
[1733205103723,0.751,3659.7,3658.9,0.8273]
[1733205103924,0.25603604,3659.6,3659.0,0.55137268]
[1733205104100,0.25603604,3659.5,3659.0,0.55137268]
[1733205104432,0.751,3659.7,3659.3,3.0]
[1733205104632,0.25597437,3659.6,3659.3,5.73274]
[1733205104835,0.25597437,3659.5,3659.4,0.12566747]
[1733205105550,0.25597437,3659.5,3659.3,3.0]
[1733205105726,0.751,3659.7,3659.4,0.12566747]
[1733205105928,0.25592925,3659.6,3659.4,0.12566747]
[1733205106122,0.25592925,3659.5,3659.4,0.12566747]
[1733205107155,0.25592925,3659.5,3659.4,0.12187697]
[1733205107314,0.80698315,3659.5,3659.4,0.12187697]
[1733205107652,0.80698315,3659.5,3658.6,3.53447]
[1733205107952,3.53046409,3659.4,3658.6,3.53447]
[1733205108153,0.66534832,3659.3,3658.6,3.53447]
[1733205108339,0.25592925,3659.2,3658.6,3.53447]
[1733205108656,0.25592925,3659.1,3658.6,0.8012]
[1733205108859,0.25571277,3659.0,3658.6,0.8012]
[1733205109072,0.40914043,3659.3,3658.6,0.8012]
[1733205109254,0.25570627,3659.2,3658.6,0.8012]
[1733205109443,0.25570627,3659.1,3658.5,0.54229501]
[1733205109642,0.25570627,3659.0,3658.4,3.0]
[1733205109950,0.25561379,3658.9,3658.3,0.7532]
[1733205110151,0.25552381,3659.2,3658.6,3.0]
[1733205110341,0.25552381,3659.1,3658.6,5.73324]
[1733205110541,2.86511577,3659.4,3658.6,5.73324]
[1733205110742,0.25550413,3659.3,3658.6,5.73324]
[1733205110962,0.25550413,3659.2,3658.8,3.0]
[1733205111172,0.255502,3659.1,3658.8,3.0]
[1733205111356,0.8301,3659.4,3658.8,3.0]
[1733205111555,0.25542909,3659.3,3658.8,3.0]
[1733205111855,0.25542909,3659.2,3658.8,3.0]
[1733205112029,0.25542909,3659.1,3658.5,2.73333]
[1733205112229,0.8301,3659.4,3658.6,3.0]
[1733205112475,0.25536925,3659.3,3658.6,5.73325]
[1733205112634,0.25536925,3659.2,3658.6,5.73325]
[1733205112834,0.8301,3659.4,3658.6,5.73325]
[1733205113047,0.25535692,3659.3,3658.6,5.73325]
[1733205113243,0.25535692,3659.2,3658.6,5.73325]
[1733205113448,0.25532374,3659.3,3658.6,5.73325]
[1733205113735,0.25532374,3659.2,3658.6,6.25253936]
[1733205113958,0.25532236,3659.3,3658.6,0.51928936]
[1733205114159,0.25532236,3659.2,3658.8,3.0]
[1733205114359,0.2552768,3659.6,3659.4,2.73263]
[1733205114544,1.18584043,3660.0,3658.9,0.813]
[1733205114750,0.25526055,3659.9,3659.0,2.73298]
[1733205115065,0.25526055,3659.8,3659.5,2.7326]
[1733205115368,0.25526055,3659.9,3659.5,2.7326]
[1733205115669,0.7767,3660.0,3659.5,2.7326]
[1733205115839,0.25524168,3659.9,3659.5,2.7326]
[1733205116169,0.25524168,3659.8,3659.5,2.7326]
[1733205116346,0.25524168,3659.9,3659.5,2.7326]
[1733205116662,0.25524168,3659.8,3659.5,2.7326]
[1733205116862,0.25524168,3659.7,3659.5,2.7326]
[1733205117170,0.7767,3660.0,3659.5,2.7326]
[1733205117378,0.25527062,3659.9,3659.4,2.73265]
[1733205117574,0.25527062,3659.8,3659.5,0.80202252]
[1733205117737,0.25525256,3660.1,3659.7,2.73246]
[1733205117936,1.23818669,3660.3,3659.7,2.73246]
[1733205117937,0.25525256,3660.0,3659.8,0.12203904]
[1733205118137,0.25525256,3659.9,3659.7,2.73246]
[1733205118356,0.8298,3660.3,3659.8,0.12171513]
[1733205118670,0.8298,3660.3,3659.7,2.73246]
[1733205118671,0.25526242,3660.2,3659.7,2.73246]
[1733205118879,0.25526242,3660.1,3659.6,3.0]
[1733205119165,0.25526242,3660.0,3659.7,0.12175772]
[1733205119369,0.25526242,3659.9,3659.7,0.12175772]
[1733205119560,0.25526242,3659.8,3659.6,3.0]
[1733205119756,1.67920017,3660.3,3659.3,2.73274]
[1733205119757,0.40838669,3660.2,3659.3,2.73274]
[1733205119927,0.40838669,3660.2,3659.2,1.34668055]
[1733205119928,0.25528653,3660.1,3659.7,0.12175772]
[1733205120131,0.25528653,3660.0,3659.5,3.0]
[1733205120340,1.06458653,3659.9,3659.8,0.12171513]
[1733205120561,1.06458653,3659.9,3659.3,3.0]
[1733205120766,0.25528653,3659.8,3659.3,3.0]
[1733205120940,0.25528653,3659.7,3659.4,2.73268]
[1733205121142,0.8093,3659.9,3659.2,1.34668055]
[1733205121346,0.25530957,3659.8,3659.3,3.0]
[1733205121557,0.25530957,3659.7,3659.3,3.0]
[1733205121874,0.25531526,3659.6,3659.3,3.0]
[1733205122038,0.8093,3659.9,3659.3,3.0]
[1733205122241,0.25532911,3659.8,3659.3,3.0]
[1733205122574,0.25532911,3659.7,3659.3,3.0]
[1733205122795,0.25532911,3659.6,3659.3,2.73274]
[1733205123084,0.25532411,3659.8,3659.4,3.0]
[1733205123239,0.8093,3659.9,3659.4,3.0]
[1733205123240,0.25532411,3659.7,3659.4,3.0]
[1733205123432,0.8093,3659.9,3659.4,3.0]
[1733205123671,0.25535794,3659.8,3659.4,3.0]
[1733205123872,0.25535794,3659.7,3659.2,3.8075]
[1733205124082,0.25535794,3659.6,3659.2,3.8075]
[1733205124249,0.25535794,3659.5,3659.2,3.8075]
[1733205124580,1.21768669,3659.9,3659.2,3.8075]
[1733205124780,0.25540325,3659.8,3659.3,3.0]
[1733205125087,0.25540325,3659.7,3659.3,3.0]
[1733205125284,0.25540325,3659.6,3659.4,3.0]
[1733205125455,0.25543197,3659.6,3659.4,3.0]
[1733205125658,1.21799115,3659.9,3659.4,3.0]
[1733205125884,0.8093,3659.9,3659.4,3.0]
[1733205126179,0.25543381,3659.8,3659.7,2.73246]
[1733205126553,0.8081,3660.3,3659.7,2.73246]
[1733205126752,0.66413471,3660.2,3659.2,0.8075]
[1733205126963,0.8081,3660.0,3659.2,6.54033]
[1733205127184,0.66413471,3659.9,3659.1,3.0]
[1733205127487,0.8081,3659.4,3658.2,0.8]
[1733205127778,0.25544356,3659.3,3658.3,0.02732997]
[1733205127982,0.25544356,3659.2,3658.8,0.8]
[1733205128184,0.25544356,3659.1,3658.8,0.8]
[1733205128394,0.40869115,3659.4,3658.9,2.73305]
[1733205128587,0.25558745,3659.3,3658.9,2.73305]
[1733205128745,0.8192,3659.6,3658.9,2.73305]
[1733205128951,0.66451198,3659.5,3658.9,2.73305]
[1733205129281,0.66451198,3659.4,3658.8,3.886447]
[1733205129486,0.25558153,3659.3,3658.8,3.886447]
[1733205129788,0.25558153,3659.2,3658.8,3.886447]
[1733205129956,0.25558153,3659.1,3658.8,3.886447]
[1733205130186,0.25568963,3659.0,3658.8,3.886447]
[1733205130390,0.40893045,3659.5,3658.8,3.886447]
[1733205130543,0.66461803,3659.4,3658.8,3.53313]
[1733205130746,0.8192,3659.6,3658.8,3.53313]
[1733205130747,0.66461803,3659.3,3658.8,3.53313]
[1733205130984,0.25568758,3659.2,3658.8,3.53313]
[1733205131182,0.25568758,3659.1,3658.8,3.53313]
[1733205131390,0.25568758,3659.0,3658.8,3.53313]
[1733205131682,0.40893045,3659.5,3658.9,0.02732741]
[1733205131898,0.66467665,3659.4,3658.9,0.02732741]
[1733205132188,0.2557462,3659.3,3659.2,2.73283]
[1733205132400,0.25582796,3659.3,3659.2,6.56173]
[1733205132549,2.33731222,3660.1,3659.2,6.56173]
[1733205132550,0.94492572,3660.1,3659.3,3.0]
[1733205132752,0.66512708,3660.0,3659.5,2.73257]
[1733205132980,0.66512708,3659.9,3659.6,0.12201342]
[1733205133189,0.66512708,3659.8,3659.5,3.0]
[1733205133375,0.66512708,3659.7,3659.5,3.0]
[1733205133581,0.66512708,3659.7,3659.2,2.0426264]
[1733205133582,0.2558169,3659.6,3659.2,2.0426264]
[1733205133892,0.25581078,3659.5,3659.4,5.73268]
[1733205134194,0.774,3660.1,3659.5,2.73259]
[1733205134399,0.66508499,3660.0,3659.8,2.73231]
[1733205134686,0.25580192,3660.0,3659.9,0.8113]
[1733205134858,0.25578339,3660.0,3659.9,0.8113]
[1733205135256,0.25578339,3660.0,3659.9,3.54361]
[1733205135457,0.25578339,3660.0,3659.8,3.0]
[1733205135659,2.12314031,3660.7,3659.1,0.8113]
[1733205135660,0.25578339,3659.9,3659.1,0.8113]
[1733205135862,0.25578339,3659.8,3659.2,3.0]
[1733205136082,0.25577659,3659.7,3659.2,3.0]
[1733205136354,0.25577659,3659.6,3659.2,2.7328]
[1733205136564,0.25577659,3659.5,3659.3,3.0]
[1733205136792,0.25578336,3659.4,3659.3,2.73274]
[1733205137000,2.85031577,3660.1,3659.3,2.73274]
[1733205137001,0.40924456,3660.0,3659.3,2.73274]
[1733205137301,0.66501917,3659.9,3659.3,2.73274]
[1733205137505,0.66501917,3659.8,3659.3,2.73274]
[1733205137708,0.25577461,3659.7,3659.3,2.73274]
[1733205138002,0.25577461,3659.6,3659.3,2.73274]
[1733205138166,0.25577461,3659.5,3659.1,0.83862564]
[1733205138367,0.40922991,3659.7,3659.2,3.0]
[1733205138615,0.25577611,3659.6,3659.2,3.0]
[1733205138908,0.25577611,3659.5,3659.2,3.0]
[1733205139117,0.4567408,3660.0,3659.3,3.0]
[1733205139331,0.66502884,3659.9,3659.4,0.02732559]
[1733205139542,0.66502884,3659.8,3659.1,0.8113]
[1733205139816,3.74057941,3660.5,3659.9,2.73225]
[1733205139817,1.13693229,3660.5,3659.9,2.73225]
[1733205140018,0.17090935,3660.3,3659.9,0.7945]
[1733205140182,0.25575576,3660.2,3659.8,3.0]
[1733205140382,2.55634669,3660.6,3659.8,3.0]
[1733205140383,0.66495212,3660.1,3659.9,3.0]
[1733205140690,1.13693229,3660.6,3659.9,3.0]
[1733205140691,0.25575576,3660.0,3659.9,3.0]
[1733205140894,0.25575576,3660.0,3659.6,3.52702]
[1733205141100,0.25575576,3659.9,3659.7,5.73243]
[1733205141313,0.25575576,3659.8,3659.7,5.73243]
[1733205142227,0.25575576,3659.8,3659.1,0.8084]
[1733205142413,0.25575576,3659.7,3659.2,3.16316]
[1733205142584,0.40920722,3660.0,3659.7,3.0]
[1733205142785,0.40920722,3660.0,3659.2,0.16316]
[1733205142786,0.66498868,3659.9,3659.4,3.0]
[1733205143114,0.66504182,3659.8,3659.4,3.0]
[1733205143420,0.25578146,3659.7,3659.4,3.0]
[1733205143620,0.7899,3660.1,3659.4,3.0]
[1733205143621,0.25578146,3659.6,3659.4,3.0]
[1733205143931,0.25578146,3659.5,3659.3,0.02732454]
[1733205144091,1.92683229,3660.1,3659.5,3.0]
[1733205144092,0.40931051,3659.9,3659.5,3.0]
[1733205144287,0.66515928,3659.8,3659.5,3.0]
[1733205144483,0.66515928,3659.7,3659.5,3.0]
[1733205144688,0.25584877,3659.6,3659.5,3.0]
[1733205146701,1.13693229,3660.0,3659.5,3.0]
[1733205146903,0.2558561,3659.6,3659.5,3.0]
[1733205147218,0.25585478,3659.6,3659.5,3.0]
[1733205147400,0.25585478,3659.6,3659.3,3.0]
[1733205147598,0.25585478,3659.5,3659.3,3.0]
[1733205147807,0.25585478,3659.4,3659.3,3.0]
[1733205149614,0.25585478,3659.4,3659.3,5.73276]
[1733205150120,0.25585478,3659.4,3659.3,2.73276]
[1733205150326,0.25585478,3659.4,3659.1,3.54129]
[1733205150526,0.25587714,3659.3,3659.1,3.54129]
[1733205150721,0.25587714,3659.3,3659.2,0.354129]
[1733205150956,0.255884,3659.3,3659.2,0.354129]
[1733205154167,0.25588213,3659.3,3659.2,0.354129]
[1733205154464,0.25588213,3659.3,3659.2,3.086959]
[1733205154964,0.40939853,3659.8,3659.2,3.086959]
[1733205155123,0.66527155,3659.7,3659.2,2.73283]
[1733205155321,0.66527155,3659.6,3659.2,2.73283]
[1733205155524,0.25587302,3659.5,3659.1,3.8084]
[1733205155824,0.25587302,3659.4,3659.1,3.54128]
[1733205156019,0.40940393,3659.7,3659.1,3.54128]
[1733205156256,0.2558774,3659.6,3659.1,4.25008272]
[1733205156488,0.2558774,3659.5,3659.1,4.25008272]
[1733205156629,0.2558774,3659.4,3659.1,4.25008272]
[1733205156827,0.40940951,3659.6,3659.1,4.25008272]
[1733205157134,0.25587917,3659.5,3659.3,2.73269]
[1733205157335,0.40940951,3659.7,3659.4,2.73268]
[1733205157537,1.13693229,3660.0,3659.4,2.73268]
[1733205157852,1.6131299,3659.9,3659.4,2.73268]
[1733205158050,1.61313029,3659.8,3659.1,1.51720272]
[1733205158266,0.66526679,3659.7,3659.2,3.63369442]
[1733205158480,0.25587184,3659.6,3659.2,3.63369442]
[1733205158760,0.25587184,3659.5,3659.2,3.60636962]
[1733205158938,0.25587184,3659.4,3659.2,3.60636962]
[1733205159134,0.40948091,3659.7,3659.2,3.60636962]
[1733205159336,0.66543258,3659.6,3659.2,3.60636962]
[1733205159663,2.55887433,3659.9,3659.2,3.60636962]
[1733205159664,0.25595167,3659.5,3659.4,2.73268]
[1733205159875,0.25595167,3659.5,3659.4,3.52528]
[1733205160727,2.55897018,3660.2,3659.7,2.73244]
[1733205160922,1.61353799,3660.1,3659.7,2.73244]
[1733205161163,0.66550669,3660.0,3659.7,2.73244]
[1733205161472,0.66550669,3659.9,3659.4,0.7926]
[1733205161696,0.25596411,3659.8,3659.6,2.73251]
[1733205161873,0.25596411,3659.7,3659.6,2.73251]
[1733205162475,0.25596411,3659.7,3659.6,2.73253]
[1733205162679,0.66555836,3659.7,3659.6,2.85429199]
[1733205163153,0.66555836,3659.7,3659.6,0.12176199]
[1733205163455,0.66555836,3659.7,3659.1,2.73283]
[1733205163456,0.66555836,3659.7,3659.2,2.73281]
[1733205163789,0.66559894,3659.6,3659.2,2.73281]
[1733205163986,0.25596411,3659.5,3659.2,2.73281]
[1733205164186,0.25596411,3659.4,3659.3,0.53555656]
[1733205164864,0.25596411,3659.4,3659.3,3.26831656]
[1733205166665,0.25596411,3659.4,3659.3,0.53555656]
[1733205167967,0.25596411,3659.4,3658.7,0.7843]
[1733205168156,0.25596411,3659.3,3659.0,0.54404024]
[1733205168504,0.25596411,3659.2,3659.0,0.54404024]
[1733205168796,0.25596411,3659.1,3659.0,0.54404024]
[1733205172100,0.25607053,3659.1,3659.0,0.54404024]
[1733205175088,0.25607053,3659.1,3658.7,0.7843]
[1733205175297,0.25607053,3659.0,3658.6,0.5556467]
[1733205175590,0.25607053,3658.9,3658.4,1.0651]
[1733205175789,0.25607053,3658.8,3658.4,1.0651]
[1733205175993,0.40970638,3659.1,3658.4,0.7919]
[1733205176194,0.66577376,3659.0,3658.4,0.7919]
[1733205176501,0.93912626,3659.2,3658.4,3.7919]
[1733205176502,0.25606738,3658.9,3658.4,3.7919]
[1733205176706,0.25606738,3658.8,3658.4,3.7919]
[1733205176907,1.04736738,3658.7,3658.1,0.2732]
[1733205177108,1.04736738,3658.7,3658.1,2.73365]
[1733205177109,0.25606738,3658.6,3658.1,2.73365]
[1733205177413,0.7913,3658.7,3658.1,2.73365]
[1733205177707,0.25594693,3658.6,3658.2,0.1227761]
[1733205177908,0.25594693,3658.5,3658.0,22.05030481]
[1733205178068,1.20081522,3658.7,3658.3,0.12273348]
[1733205178406,1.19497728,3658.6,3658.0,20.74848656]
[1733205178590,0.25585102,3658.5,3658.4,0.12269086]
[1733205178791,0.7896,3658.4,3658.0,20.74848656]
[1733205179315,0.25587244,3658.3,3658.1,0.12281872]
[1733205179482,0.25587244,3658.2,3658.1,0.12281872]
[1733205180563,0.7896,3658.4,3658.1,0.12281872]
[1733205180811,0.25571933,3658.3,3658.1,0.12281872]
[1733205180979,0.7896,3658.4,3658.1,0.12281872]
[1733205181180,0.25572287,3658.3,3658.1,0.12281872]
[1733205181380,0.7896,3658.4,3658.1,0.12281872]
[1733205181589,0.25561456,3658.3,3658.1,0.12281872]
[1733205181781,0.7896,3658.4,3658.1,0.12281872]
[1733205181969,0.25561331,3658.3,3658.1,0.12281872]
[1733205182170,0.7896,3658.4,3658.1,0.12281872]
[1733205184313,6.31596441,3659.0,3658.1,0.12281872]
[1733205184314,1.06775275,3658.6,3658.1,0.12281872]
[1733205184620,0.8123,3658.6,3658.1,3.64296872]
[1733205184775,0.25538422,3658.7,3658.3,2.73347]
[1733205184969,0.25536425,3658.9,3658.3,2.73347]
[1733205185275,0.25536425,3658.9,3658.2,0.02733452]
[1733205185276,0.25534908,3658.9,3658.4,2.85661653]
[1733205186286,0.25534908,3658.9,3658.4,0.12323653]
[1733205186488,0.7591,3659.0,3658.2,2.73356]
[1733205186708,0.7591,3659.0,3658.5,0.12319391]
[1733205186878,0.7591,3659.0,3658.2,2.73356]
[1733205187101,0.25535043,3658.9,3658.6,0.1231513]
[1733205187418,0.25536453,3658.8,3658.6,0.1231513]
[1733205187615,0.25536453,3658.9,3658.2,2.73356]
[1733205187851,0.25536453,3658.8,3658.7,0.12310869]
[1733205187987,0.25536453,3658.9,3658.2,2.73356]
[1733205188315,0.25536453,3658.8,3658.3,0.12327915]
[1733205188677,0.7591,3659.0,3658.3,0.12327915]
[1733205189116,0.25536348,3658.9,3658.1,3.52014]
[1733205189317,0.25536348,3658.8,3658.4,0.12323653]
[1733205189524,0.25536348,3658.7,3658.1,5.94700266]
[1733205189686,0.25536348,3658.6,3658.5,0.12319391]
[1733205190015,0.25536348,3658.6,3658.1,3.52014]
[1733205190327,0.4085864,3658.9,3658.1,0.7865]
[1733205190481,0.25538811,3658.8,3658.2,0.1233303]
[1733205190686,1.08408811,3658.7,3658.0,20.74848656]
[1733205190885,0.25538811,3658.6,3658.3,0.12328768]
[1733205191195,0.25538811,3658.5,3658.0,20.74848656]
[1733205191396,0.8287,3658.7,3658.4,0.12324506]
[1733205191614,0.25543053,3658.6,3658.0,20.74848656]
[1733205191796,0.8287,3658.7,3658.5,0.12320244]
[1733205192132,0.25543022,3658.6,3658.0,20.74848656]
[1733205192540,0.25543022,3658.5,3658.0,20.74848656]
[1733205192701,0.25543022,3658.4,3658.1,0.12337292]
[1733205192896,0.8287,3658.7,3658.1,0.12337292]
[1733205193098,0.25548399,3658.6,3658.1,0.12337292]
[1733205193297,0.25548399,3658.5,3658.1,0.12337292]
[1733205193498,0.25548399,3658.4,3658.1,0.12337292]
[1733205193698,0.25548399,3658.3,3658.1,0.12337292]
[1733205193920,1.01168399,3658.2,3658.1,0.12337292]
[1733205194123,0.7562,3658.2,3658.1,0.12337292]
[1733205194343,1.01174514,3658.2,3658.1,0.12337292]
[1733205195713,0.7562,3658.2,3658.1,0.12337292]
[1733205195943,1.01174111,3658.2,3658.1,0.12337292]
[1733205197841,1.56266758,3658.2,3658.1,0.12337292]
[1733205198628,1.56266758,3658.2,3658.0,20.74848656]
[1733205198850,0.66440689,3658.1,3658.0,20.74848656]
[1733205199175,0.66440689,3658.1,3658.0,20.87190211]
[1733205199384,0.89826069,3658.2,3658.0,20.87190211]
[1733205199534,0.664582,3658.1,3658.0,20.87190211]
[1733205201772,1.60475685,3658.1,3658.0,20.87190211]
[1733205206482,1.34914839,3658.1,3658.0,20.87190211]
[1733205206696,1.60494572,3658.1,3658.0,20.87190211]
[1733205210499,2.17412411,3658.1,3658.0,20.87190211]
[1733205212979,2.15890804,3658.1,3658.0,20.87190211]
[1733205213717,1.74974207,3658.1,3658.0,20.87190211]
[1733205214005,2.15870991,3658.1,3658.0,20.87190211]
[1733205215485,2.15877485,3658.1,3658.0,20.87190211]
[1733205215683,1.58959646,3658.1,3658.0,20.87190211]
[1733205217304,1.33411302,3658.1,3658.0,20.87190211]
[1733205217467,1.58983442,3658.1,3658.0,20.87190211]
[1733205218105,1.76085521,3658.1,3658.0,20.87190211]
[1733205218276,2.70693908,3658.1,3658.0,20.87190211]
[1733205218681,6.38713181,3658.1,3658.0,20.87190211]
[1733205218878,8.5918923,3658.1,3658.0,20.87190211]
[1733205219084,9.01809463,3658.1,3658.0,20.87190211]
[1733205219377,9.01809463,3658.1,3658.0,20.25617476]
[1733205219378,8.5918923,3658.1,3658.0,20.25617476]
[1733205219575,10.29745594,3658.1,3658.0,20.25617476]
[1733205219778,8.5918923,3658.1,3658.0,20.25617476]